fUST/lending_fUST_20260118
["ID","MTS","AMOUNT","RATE_DAILY","PERIOD"]
[402447735,1768679460437,-500.0,0.00016986,3]
[402447737,1768679460448,-352.98387266,0.00016986,3]
[402447739,1768679460458,-500.0,0.00016986,3]
[402447741,1768679460468,-500.0,0.00016986,3]
[402447743,1768679460477,-500.0,0.00016986,3]
[402447745,1768679460487,-500.0,0.00016986,3]
[402447747,1768679460498,-500.0,0.00016986,3]
[402447773,1768679460709,-648.09,0.00016986,3]
[402447776,1768679460753,-500.0,0.00016986,2]
[402447778,1768679460763,-274.62103674,0.00016986,3]
[402447780,1768679460772,-1152.08,0.00016986,3]
[402447782,1768679460781,-500.0,0.00016986,3]
[402447784,1768679460791,-1273.97,0.00016986,3]
[402447786,1768679460800,-1266.1,0.00016986,3]
[402447788,1768679460809,-500.0,0.00016986,3]
[402447790,1768679460818,-500.0,0.00016986,3]
[402447791,1768679460827,-500.0,0.00016986,3]
[402447793,1768679460836,-500.0,0.00016986,3]
[402447795,1768679460846,-500.0,0.00016986,2]
[402447797,1768679460855,-687.93,0.00016986,3]
[402447799,1768679460865,-500.0,0.00016986,3]
[402447801,1768679460874,-500.0,0.00016986,3]
[402447803,1768679460883,-205.0424937,0.00016986,3]
[402447805,1768679460893,-500.0,0.00016986,3]
[402447807,1768679460903,-532.35,0.00016986,3]
[402447809,1768679460912,-500.0,0.00016986,3]
[402447811,1768679460921,-500.0,0.00016986,3]
[402447813,1768679460930,-638.39,0.00016986,3]
[402447815,1768679460940,-500.0,0.00016986,3]
[402447817,1768679460949,-500.0,0.00016986,3]
[402447819,1768679460959,-1194.29,0.00016986,3]
[402447821,1768679460968,-500.0,0.00016986,3]
[402447823,1768679460977,-500.0,0.00016986,3]
[402447825,1768679460986,-500.0,0.00016986,3]
[402447827,1768679460996,-500.0,0.00016986,3]
[402447829,1768679461006,-500.0,0.00016986,3]
[402447831,1768679461016,-507.79,0.00016986,3]
[402447833,1768679461026,-500.0,0.00016986,3]
[402447835,1768679461036,-1199.46,0.00016986,3]
[402447838,1768679461046,-1113.02,0.00016986,3]
[402447840,1768679461056,-500.0,0.00016986,3]
[402447842,1768679461065,-500.0,0.00016986,3]
[402447844,1768679461075,-500.0,0.00016986,3]
[402447846,1768679461085,-1332.88,0.00016986,3]
[402447847,1768679461094,-150.12056451,0.00016986,2]
[402447849,1768679461103,-31110.0,0.00016992,2]
[402447851,1768679461113,-461.67526834,0.00016992,2]
[402447853,1768679461123,-199.06654963,0.00016992,2]
[402447855,1768679461132,-251.5046784,0.00016992,2]
[402447857,1768679461142,-2230.315306,0.00016992,2]
[402447859,1768679461152,-200.0,0.00017,2]
[402447861,1768679461162,-200.0,0.00017,2]
[402447863,1768679461171,-200.0,0.00017,2]
[402447865,1768679461181,-200.0,0.00017,2]
[402447867,1768679461192,-200.0,0.00017,2]
[402447869,1768679461202,-200.0,0.00017,2]
[402447871,1768679461212,-200.0,0.00017,2]
[402447873,1768679461221,-200.0,0.00017,2]
[402447875,1768679461231,-209.50263211,0.00017,2]
[402447877,1768679461241,-503.0,0.00017091,2]
[402447879,1768679461252,-500.0,0.00017121,2]
[402447881,1768679461262,-500.0,0.00017123,2]
[402447883,1768679461272,-500.0,0.00017141,2]
[402447885,1768679461281,-503.0,0.00017168,2]
[402447887,1768679461290,-503.0,0.00017214,2]
[402447889,1768679461300,-503.0,0.00017244,2]
[402447891,1768679461310,-500.0,0.0001726,2]
[402447893,1768679461319,-3513.4471999,0.0001726,2]
[402447895,1768679461329,-263.85732157,0.0001726,3]
[402447897,1768679461339,-500.0,0.0001726,3]
[402447899,1768679461348,-500.0,0.0001726,3]
[402447901,1768679461358,-212.75124021,0.0001726,3]
[402447903,1768679461368,-564.1083671,0.0001726,3]
[402447906,1768679461378,-500.0,0.0001726,3]
[402447908,1768679461388,-500.0,0.0001726,3]
[402447910,1768679461398,-500.0,0.0001726,3]
[402447911,1768679461407,-1139.03,0.0001726,3]
[402447914,1768679461417,-500.0,0.0001726,3]
[402447916,1768679461428,-500.0,0.0001726,3]
[402447917,1768679461438,-500.0,0.0001726,3]
[402447920,1768679461447,-500.0,0.0001726,3]
[402447921,1768679461457,-500.0,0.0001726,3]
[402447924,1768679461466,-500.68,0.0001726,3]
[402447926,1768679461476,-500.0,0.0001726,3]
[402447927,1768679461485,-500.0,0.0001726,3]
[402447930,1768679461495,-500.0,0.0001726,3]
[402447932,1768679461504,-500.0,0.0001726,3]
[402447934,1768679461513,-891.03,0.0001726,3]
[402447936,1768679461523,-500.0,0.0001726,3]
[402447938,1768679461532,-500.0,0.0001726,3]
[402447940,1768679461542,-500.0,0.0001726,3]
[402447942,1768679461551,-500.0,0.0001726,3]
[402447944,1768679461560,-500.0,0.0001726,3]
[402447946,1768679461569,-500.0,0.0001726,3]
[402447948,1768679461578,-500.0,0.0001726,3]
[402447950,1768679461587,-500.0,0.0001726,3]
[402447952,1768679461596,-500.0,0.0001726,3]
[402447954,1768679461606,-500.0,0.0001726,3]
[402447956,1768679461614,-500.0,0.0001726,3]
[402447957,1768679461622,-500.0,0.0001726,3]
[402447960,1768679461632,-993.81,0.0001726,3]
[402447962,1768679461641,-500.0,0.0001726,3]
[402447964,1768679461651,-500.0,0.0001726,3]
[402447966,1768679461659,-1347.64,0.0001726,3]
[402447968,1768679461668,-195.78734149,0.0001726,3]
[402447970,1768679461677,-696.42,0.0001726,3]
[402447972,1768679461686,-500.0,0.0001726,3]
[402447974,1768679461695,-633.62,0.0001726,3]
[402447976,1768679461704,-500.0,0.0001726,3]
[402447978,1768679461714,-500.0,0.0001726,3]
[402447980,1768679461723,-645.22,0.0001726,3]
[402447982,1768679461733,-500.0,0.0001726,3]
[402447984,1768679461743,-506.33,0.0001726,3]
[402447986,1768679461753,-500.0,0.0001726,3]
[402447988,1768679461762,-500.0,0.0001726,3]
[402447990,1768679461771,-500.0,0.0001726,3]
[402447992,1768679461780,-500.0,0.0001726,3]
[402447994,1768679461789,-1262.56,0.0001726,3]
[402447996,1768679461799,-386.49269508,0.0001726,3]
[402447998,1768679461808,-500.0,0.0001726,3]
[402448000,1768679461817,-500.0,0.0001726,3]
[402448002,1768679461826,-500.0,0.0001726,3]
[402448003,1768679461836,-500.0,0.0001726,3]
[402448005,1768679461845,-1321.04,0.0001726,3]
[402448007,1768679461854,-500.0,0.0001726,3]
[402448009,1768679461864,-682.86,0.0001726,3]
[402448011,1768679461873,-500.0,0.0001726,3]
[402448013,1768679461882,-500.0,0.0001726,3]
[402448015,1768679461891,-637.08,0.0001726,3]
[402448017,1768679461901,-500.0,0.0001726,3]
[402448019,1768679461911,-796.7,0.0001726,3]
[402448021,1768679461921,-562.16,0.0001726,3]
[402448023,1768679461930,-500.0,0.0001726,3]
[402448025,1768679461939,-679.17,0.0001726,3]
[402448027,1768679461949,-718.32,0.0001726,3]
[402448029,1768679461958,-500.0,0.0001726,3]
[402448031,1768679461969,-500.0,0.0001726,3]
[402448033,1768679461978,-500.0,0.0001726,3]
[402448035,1768679461988,-872.29,0.0001726,3]
[402448037,1768679461998,-561.82,0.0001726,3]
[402448039,1768679462008,-500.0,0.0001726,3]
[402448041,1768679462018,-500.0,0.0001726,3]
[402448043,1768679462028,-521.63724608,0.0001726,3]
[402448045,1768679462037,-942.6,0.0001726,3]
[402448047,1768679462046,-500.0,0.0001726,3]
[402448049,1768679462056,-1254.55,0.0001726,3]
[402448052,1768679462067,-500.0,0.0001726,3]
[402448053,1768679462076,-500.0,0.0001726,3]
[402448055,1768679462087,-500.0,0.0001726,3]
[402448058,1768679462096,-656.32,0.0001726,3]
[402448059,1768679462106,-500.0,0.0001726,3]
[402448061,1768679462115,-500.0,0.0001726,3]
[402448063,1768679462126,-500.0,0.0001726,3]
[402448065,1768679462135,-500.0,0.0001726,3]
[402448067,1768679462145,-227.26017187,0.0001726,3]
[402448069,1768679462155,-547.667889,0.0001726,3]
[402448071,1768679462164,-500.0,0.0001726,3]
[402448073,1768679462174,-500.0,0.0001726,3]
[402448075,1768679462184,-797.42,0.0001726,3]
[402448077,1768679462194,-881.58,0.0001726,3]
[402448079,1768679462204,-1020.76,0.0001726,3]
[402448081,1768679462213,-500.0,0.0001726,3]
[402448083,1768679462223,-500.0,0.0001726,3]
[402448085,1768679462233,-500.0,0.0001726,3]
[402448087,1768679462244,-500.0,0.0001726,3]
[402448089,1768679462255,-1057.49,0.0001726,3]
[402448091,1768679462265,-500.0,0.0001726,3]
[402448093,1768679462275,-228.06287454,0.0001726,3]
[402448095,1768679462287,-1420.1,0.0001726,3]
[402448097,1768679462296,-500.0,0.0001726,3]
[402448099,1768679462306,-884.75,0.0001726,3]
[402448101,1768679462315,-500.0,0.0001726,3]
[402448103,1768679462326,-500.0,0.0001726,3]
[402448104,1768679462335,-500.0,0.0001726,3]
[402448105,1768679462344,-847.44,0.0001726,3]
[402448106,1768679462354,-500.0,0.0001726,3]
[402448107,1768679462363,-500.0,0.0001726,3]
[402448108,1768679462372,-500.0,0.0001726,3]
[402448109,1768679462381,-500.0,0.0001726,3]
[402448110,1768679462390,-1228.47,0.0001726,3]
[402448111,1768679462399,-500.0,0.0001726,3]
[402448112,1768679462408,-606.9,0.0001726,3]
[402448113,1768679462418,-500.0,0.0001726,3]
[402448114,1768679462428,-500.0,0.0001726,3]
[402448115,1768679462436,-500.0,0.0001726,3]
[402448116,1768679462445,-736.96,0.0001726,3]
[402448117,1768679462454,-545.22,0.0001726,3]
[402448118,1768679462463,-727.09,0.0001726,3]
[402448119,1768679462472,-500.0,0.0001726,3]
[402448120,1768679462480,-1634.12,0.0001726,3]
[402448121,1768679462489,-500.0,0.0001726,3]
[402448122,1768679462498,-595.35,0.0001726,3]
[402448123,1768679462507,-500.0,0.0001726,3]
[402448124,1768679462515,-500.0,0.0001726,3]
[402448125,1768679462525,-309.63209923,0.0001726,3]
[402448126,1768679462534,-500.0,0.0001726,3]
[402448127,1768679462543,-484.52529222,0.0001726,3]
[402448128,1768679462552,-500.0,0.0001726,3]
[402448129,1768679462561,-500.0,0.0001726,3]
[402448130,1768679462570,-1317.95,0.0001726,3]
[402448131,1768679462579,-718.42,0.0001726,3]
[402448132,1768679462587,-500.0,0.0001726,3]
[402448133,1768679462597,-1449.09,0.0001726,3]
[402448134,1768679462607,-278.05841257,0.0001726,3]
[402448135,1768679462615,-759.73,0.0001726,3]
[402448136,1768679462624,-500.0,0.0001726,3]
[402448137,1768679462633,-500.0,0.0001726,3]
[402448138,1768679462642,-500.0,0.0001726,3]
[402448139,1768679462651,-500.0,0.0001726,3]
[402448140,1768679462660,-1291.04,0.0001726,3]
[402448141,1768679462669,-623.12,0.0001726,3]
[402448143,1768679462678,-631.17,0.0001726,3]
[402448145,1768679462687,-500.0,0.0001726,3]
[402448147,1768679462697,-500.0,0.0001726,3]
[402448149,1768679462706,-1196.65,0.0001726,3]
[402448151,1768679462717,-761.06,0.0001726,3]
[402448153,1768679462726,-500.0,0.0001726,3]
[402448155,1768679462736,-500.0,0.0001726,3]
[402448157,1768679462746,-609.24,0.0001726,3]
[402448159,1768679462756,-500.0,0.0001726,3]
[402448161,1768679462765,-500.0,0.0001726,3]
[402448163,1768679462775,-500.0,0.0001726,3]
[402448165,1768679462784,-901.7,0.0001726,3]
[402448167,1768679462794,-1140.39,0.0001726,3]
[402448169,1768679462803,-500.0,0.0001726,3]
[402448171,1768679462813,-500.0,0.0001726,3]
[402448173,1768679462822,-500.0,0.0001726,3]
[402448175,1768679462832,-500.0,0.0001726,3]
[402448177,1768679462842,-576.16,0.0001726,3]
[402448179,1768679462852,-500.0,0.0001726,3]
[402448181,1768679462861,-511.75,0.0001726,3]
[402448183,1768679462870,-680.68,0.0001726,3]
[402448185,1768679462880,-500.0,0.0001726,3]
[402448187,1768679462889,-1548.48,0.0001726,3]
[402448189,1768679462900,-500.0,0.0001726,3]
[402448191,1768679462909,-500.0,0.0001726,3]
[402448193,1768679462925,-734.72,0.0001726,3]
[402448196,1768679462940,-500.0,0.0001726,3]
[402448199,1768679462956,-1329.58,0.0001726,3]
[402448201,1768679462967,-500.0,0.0001726,3]
[402448203,1768679462980,-500.0,0.0001726,3]
[402448206,1768679462994,-500.0,0.0001726,3]
[402448208,1768679463009,-539.06,0.0001726,3]
[402448211,1768679463024,-500.0,0.0001726,3]
[402448213,1768679463038,-1126.25,0.0001726,3]
[402448216,1768679463052,-500.0,0.0001726,3]
[402448218,1768679463067,-701.32,0.0001726,3]
[402448221,1768679463080,-1192.97,0.0001726,3]
[402448223,1768679463094,-500.0,0.0001726,3]
[402448225,1768679463107,-500.0,0.0001726,3]
[402448227,1768679463119,-727.1,0.0001726,3]
[402448230,1768679463134,-500.0,0.0001726,3]
[402448232,1768679463147,-500.0,0.0001726,3]
[402448235,1768679463159,-781.78,0.0001726,3]
[402448237,1768679463170,-592.22,0.0001726,3]
[402448239,1768679463183,-251.11469402,0.0001726,3]
[402448241,1768679463196,-500.0,0.0001726,3]
[402448244,1768679463209,-500.0,0.0001726,3]
[402448246,1768679463223,-537.93,0.0001726,3]
[402448249,1768679463237,-1258.39,0.0001726,3]
[402448251,1768679463255,-571.8,0.0001726,3]
[402448253,1768679463269,-605.99,0.0001726,3]
[402448256,1768679463282,-500.0,0.0001726,3]
[402448258,1768679463293,-500.0,0.0001726,3]
[402448260,1768679463304,-1201.55,0.0001726,3]
[402448262,1768679463316,-272.37095351,0.0001726,3]
[402448265,1768679463331,-500.0,0.0001726,3]
[402448267,1768679463345,-407.51341216,0.0001726,3]
[402448269,1768679463355,-500.0,0.0001726,3]
[402448272,1768679463367,-500.0,0.0001726,3]
[402448274,1768679463379,-500.0,0.0001726,3]
[402448276,1768679463392,-500.0,0.0001726,3]
[402448278,1768679463402,-500.0,0.0001726,3]
[402448280,1768679463413,-500.0,0.0001726,3]
[402448283,1768679463424,-873.03,0.0001726,3]
[402448285,1768679463436,-500.0,0.0001726,3]
[402448287,1768679463448,-1442.06,0.0001726,3]
[402448289,1768679463460,-500.0,0.0001726,3]
[402448292,1768679463472,-348.04789676,0.0001726,3]
[402448294,1768679463484,-829.64,0.0001726,3]
[402448296,1768679463495,-500.0,0.0001726,3]
[402448298,1768679463507,-1626.68,0.0001726,3]
[402448301,1768679463523,-500.0,0.0001726,3]
[402448304,1768679463535,-500.0,0.0001726,3]
[402448306,1768679463547,-500.0,0.0001726,3]
[402448308,1768679463558,-500.0,0.0001726,3]
[402448310,1768679463570,-500.0,0.0001726,3]
[402448313,1768679463588,-617.5,0.0001726,3]
[402448315,1768679463598,-500.0,0.0001726,3]
[402448317,1768679463610,-500.0,0.0001726,3]
[402448319,1768679463621,-500.0,0.0001726,3]
[402448322,1768679463633,-681.42,0.0001726,3]
[402448324,1768679463644,-500.0,0.0001726,3]
[402448326,1768679463656,-837.21,0.0001726,3]
[402448328,1768679463667,-500.0,0.0001726,3]
[402448331,1768679463679,-708.61,0.0001726,3]
[402448333,1768679463690,-500.0,0.0001726,3]
[402448335,1768679463702,-500.0,0.0001726,3]
[402448337,1768679463713,-500.0,0.0001726,3]
[402448340,1768679463724,-500.0,0.0001726,3]
[402448342,1768679463735,-500.0,0.0001726,3]
[402448344,1768679463746,-500.0,0.0001726,3]
[402448346,1768679463758,-500.0,0.0001726,3]
[402448349,1768679463770,-500.0,0.0001726,3]
[402448351,1768679463782,-511.63,0.0001726,3]
[402448353,1768679463794,-698.16,0.0001726,3]
[402448354,1768679463804,-500.0,0.0001726,3]
[402448356,1768679463816,-1168.98,0.0001726,3]
[402448358,1768679463827,-548.54460161,0.0001726,3]
[402448361,1768679463839,-500.0,0.0001726,3]
[402448363,1768679463850,-500.0,0.0001726,3]
[402448365,1768679463861,-500.0,0.0001726,3]
[402448367,1768679463873,-822.62,0.0001726,3]
[402448369,1768679463885,-500.0,0.0001726,3]
[402448371,1768679463896,-832.03,0.0001726,3]
[402448374,1768679463907,-500.0,0.0001726,3]
[402448376,1768679463919,-1486.24,0.0001726,3]
[402448378,1768679463930,-964.65,0.0001726,3]
[402448380,1768679463942,-500.0,0.0001726,3]
[402448382,1768679463954,-525.2,0.0001726,3]
[402448384,1768679463966,-500.0,0.0001726,3]
[402448387,1768679463977,-502.19,0.0001726,3]
[402448389,1768679463988,-663.28,0.0001726,3]
[402448391,1768679463999,-848.63,0.0001726,3]
[402448393,1768679464011,-500.0,0.0001726,3]
[402448395,1768679464024,-500.0,0.0001726,3]
[402448398,1768679464036,-500.0,0.0001726,3]
[402448400,1768679464047,-500.0,0.0001726,3]
[402448402,1768679464059,-500.0,0.0001726,3]
[402448404,1768679464071,-175.73098182,0.0001726,3]
[402448406,1768679464082,-500.0,0.0001726,3]
[402448409,1768679464094,-1697.38,0.0001726,3]
[402448411,1768679464105,-837.92,0.0001726,3]
[402448413,1768679464116,-456.1033492,0.0001726,2]
[402448415,1768679464128,-1459.89,0.0001726,3]
[402448417,1768679464140,-618.81,0.0001726,3]
[402448419,1768679464152,-500.0,0.0001726,3]
[402448421,1768679464163,-883.57,0.0001726,3]
[402448423,1768679464174,-857.65,0.0001726,3]
[402448425,1768679464186,-500.0,0.0001726,3]
[402448427,1768679464198,-500.0,0.0001726,3]
[402448430,1768679464209,-500.0,0.0001726,3]
[402448432,1768679464220,-500.0,0.0001726,3]
[402448434,1768679464232,-500.0,0.0001726,3]
[402448436,1768679464246,-500.0,0.0001726,3]
[402448438,1768679464259,-1535.26,0.0001726,3]
[402448440,1768679464271,-514.91211625,0.0001726,3]
[402448442,1768679464282,-500.0,0.0001726,3]
[402448444,1768679464294,-500.0,0.0001726,3]
[402448447,1768679464307,-987.57,0.0001726,3]
[402448449,1768679464318,-500.0,0.0001726,3]
[402448451,1768679464330,-1020.77,0.0001726,3]
[402448453,1768679464342,-500.0,0.0001726,3]
[402448455,1768679464353,-500.0,0.0001726,3]
[402448457,1768679464364,-500.0,0.0001726,3]
[402448460,1768679464375,-500.0,0.0001726,3]
[402448462,1768679464386,-500.0,0.0001726,3]
[402448464,1768679464397,-545.06,0.0001726,3]
[402448466,1768679464409,-954.48,0.0001726,3]
[402448468,1768679464420,-811.39,0.0001726,3]
[402448470,1768679464431,-500.0,0.0001726,3]
[402448473,1768679464443,-500.0,0.0001726,3]
[402448475,1768679464454,-500.0,0.0001726,3]
[402448477,1768679464465,-500.0,0.0001726,3]
[402448479,1768679464476,-500.0,0.0001726,3]
[402448481,1768679464487,-737.68,0.0001726,3]
[402448483,1768679464499,-500.0,0.0001726,3]
[402448486,1768679464510,-836.86,0.0001726,3]
[402448488,1768679464521,-1249.71,0.0001726,3]
[402448489,1768679464533,-1297.98,0.0001726,3]
[402448492,1768679464544,-500.0,0.0001726,3]
[402448494,1768679464555,-1200.0,0.0001726,2]
[402448496,1768679464568,-500.0,0.0001726,3]
[402448498,1768679464579,-1182.44,0.0001726,3]
[402448500,1768679464590,-500.0,0.0001726,3]
[402448502,1768679464601,-500.0,0.0001726,3]
[402448505,1768679464613,-500.0,0.0001726,3]
[402448507,1768679464624,-1000.0,0.0001726,2]
[402448509,1768679464636,-500.0,0.0001726,3]
[402448511,1768679464646,-509.11,0.0001726,3]
[402448513,1768679464659,-2261.74,0.0001726,3]
[402448515,1768679464671,-500.0,0.0001726,3]
[402448518,1768679464683,-500.0,0.0001726,3]
[402448520,1768679464694,-1804.58,0.0001726,3]
[402448522,1768679464706,-500.0,0.0001726,3]
[402448524,1768679464724,-500.0,0.0001726,3]
[402448526,1768679464746,-500.0,0.0001726,3]
[402448528,1768679464758,-500.0,0.0001726,3]
[402448530,1768679464769,-500.0,0.0001726,3]
[402448533,1768679464781,-635.48793387,0.0001726,3]
[402448535,1768679464792,-500.0,0.0001726,3]
[402448537,1768679464803,-500.0,0.0001726,3]
[402448539,1768679464814,-1161.49,0.0001726,3]
[402448541,1768679464825,-579.98,0.0001726,3]
[402448543,1768679464836,-500.0,0.0001726,3]
[402448546,1768679464848,-646.86,0.0001726,3]
[402448547,1768679464857,-179.4,0.0001726,2]
[402448549,1768679464866,-500.0,0.0001726,3]
[402448551,1768679464876,-500.0,0.0001726,3]
[402448553,1768679464885,-500.0,0.0001726,3]
[402448555,1768679464894,-971.6,0.0001726,3]
[402448557,1768679464903,-500.0,0.0001726,3]
[402448559,1768679464912,-500.0,0.0001726,3]
[402448560,1768679464921,-779.46,0.0001726,3]
[402448562,1768679464931,-470.6383794,0.0001726,3]
[402448564,1768679464940,-779.74,0.0001726,3]
[402448566,1768679464950,-549.39,0.0001726,3]
[402448568,1768679464959,-863.36,0.0001726,3]
[402448570,1768679464968,-310.90446794,0.0001726,3]
[402448572,1768679464977,-1141.78,0.0001726,3]
[402448574,1768679464986,-500.0,0.0001726,3]
[402448576,1768679464996,-500.0,0.0001726,3]
[402448578,1768679465005,-1435.49,0.0001726,3]
[402448580,1768679465014,-500.0,0.0001726,3]
[402448582,1768679465023,-794.82,0.0001726,3]
[402448583,1768679465033,-500.0,0.0001726,3]
[402448585,1768679465042,-500.0,0.0001726,3]
[402448588,1768679465052,-758.34,0.0001726,3]
[402448589,1768679465062,-500.0,0.0001726,3]
[402448591,1768679465071,-500.0,0.0001726,3]
[402448593,1768679465081,-500.0,0.0001726,3]
[402448594,1768679465091,-1219.11,0.0001726,3]
[402448596,1768679465100,-500.0,0.0001726,3]
[402448598,1768679465109,-500.0,0.0001726,3]
[402448600,1768679465118,-716.42,0.0001726,3]
[402448602,1768679465128,-500.0,0.0001726,3]
[402448604,1768679465136,-500.0,0.0001726,3]
[402448606,1768679465146,-828.42,0.0001726,3]
[402448607,1768679465155,-500.0,0.0001726,3]
[402448609,1768679465165,-1549.77,0.0001726,3]
[402448611,1768679465174,-1973.46,0.0001726,3]
[402448613,1768679465183,-1689.4,0.0001726,3]
[402448615,1768679465193,-500.0,0.0001726,3]
[402448618,1768679465203,-1151.7,0.0001726,3]
[402448620,1768679465213,-500.0,0.0001726,3]
[402448622,1768679465223,-1119.45,0.0001726,3]
[402448624,1768679465233,-608.13,0.0001726,3]
[402448626,1768679465243,-1042.67,0.0001726,3]
[402448628,1768679465255,-500.0,0.0001726,3]
[402448630,1768679465264,-500.0,0.0001726,3]
[402448631,1768679465273,-500.0,0.0001726,3]
[402448633,1768679465283,-500.0,0.0001726,3]
[402448635,1768679465293,-2245.47,0.0001726,3]
[402448637,1768679465302,-500.0,0.0001726,3]
[402448639,1768679465312,-500.0,0.0001726,3]
[402448641,1768679465321,-500.0,0.0001726,3]
[402448643,1768679465330,-500.0,0.0001726,3]
[402448645,1768679465340,-284.7821744,0.0001726,3]
[402448647,1768679465349,-1377.29,0.0001726,3]
[402448649,1768679465358,-611.27,0.0001726,3]
[402448651,1768679465369,-500.0,0.0001726,3]
[402448653,1768679465378,-566.4,0.0001726,3]
[402448655,1768679465387,-500.0,0.0001726,3]
[402448657,1768679465396,-500.0,0.0001726,3]
[402448659,1768679465406,-1322.2,0.0001726,3]
[402448661,1768679465416,-658.43,0.0001726,3]
[402448663,1768679465425,-500.0,0.0001726,3]
[402448665,1768679465434,-1008.67,0.0001726,3]
[402448667,1768679465443,-426.38732043,0.0001726,3]
[402448719,1768679465780,-500.0,0.0001726,3]
[402448723,1768679465945,-1081.56,0.0001726,3]
[402448726,1768679465966,-500.0,0.0001726,3]
[402448729,1768679465985,-792.81,0.0001726,3]
[402448732,1768679465996,-500.0,0.0001726,3]
[402448733,1768679466007,-500.0,0.0001726,3]
[402448735,1768679466016,-634.45,0.0001726,3]
[402448737,1768679466025,-1290.02,0.0001726,3]
[402448739,1768679466034,-500.0,0.0001726,3]
[402448741,1768679466043,-500.0,0.0001726,3]
[402448743,1768679466052,-500.0,0.0001726,3]
[402448745,1768679466062,-649.46,0.0001726,3]
[402448747,1768679466071,-629.85,0.0001726,3]
[402448749,1768679466080,-500.0,0.0001726,3]
[402448751,1768679466090,-1795.72,0.0001726,3]
[402448753,1768679466101,-500.0,0.0001726,3]
[402448755,1768679466111,-500.0,0.0001726,3]
[402448757,1768679466120,-511.27,0.0001726,3]
[402448759,1768679466129,-704.12,0.0001726,3]
[402448761,1768679466138,-500.0,0.0001726,3]
[402448763,1768679466147,-1121.71,0.0001726,3]
[402448765,1768679466157,-7250.78,0.0001726,3]
[402448767,1768679466167,-500.0,0.0001726,3]
[402448769,1768679466176,-500.0,0.0001726,3]
[402448771,1768679466185,-411.06,0.0001726,3]
[402448773,1768679466194,-500.0,0.0001726,3]
[402448775,1768679466204,-911.63,0.0001726,3]
[402448776,1768679466214,-723.29,0.0001726,3]
[402448778,1768679466223,-500.0,0.0001726,3]
[402448780,1768679466232,-653.32,0.0001726,3]
[402448782,1768679466243,-500.0,0.0001726,3]
[402448784,1768679466255,-500.0,0.0001726,3]
[402448786,1768679466264,-1012.62,0.0001726,3]
[402448788,1768679466273,-655.23,0.0001726,3]
[402448790,1768679466282,-759.12,0.0001726,3]
[402448792,1768679466293,-874.59,0.0001726,3]
[402448793,1768679466302,-1773.96,0.0001726,3]
[402448795,1768679466311,-782.71,0.0001726,3]
[402448797,1768679466321,-900.31,0.0001726,3]
[402448800,1768679466334,-500.0,0.0001726,3]
[402448802,1768679466343,-500.0,0.0001726,3]